{"text_format":"1","workbook":"xlsx","n_sheets":3,"sheets":["ورقة1","ورقة2","ورقة3"],"not_rendered":{"charts":0,"images":0,"macros":1,"external_links":0,"defined_names":0,"comments":0,"pivot_tables":0},"unopened":[],"bounds":{"document_bytes":16777216,"sheet_cells":100000,"rows_first":2000,"rows_last":500,"rows_between":2000,"halvings":0,"cell_chars":16384,"cell_head_chars":4096},"cells_cut":0,"cells_raw":0,"read":"whole","date_system":"1900"}

{"sheet":"ورقة1","index":0,"n_rows":19,"n_cols":125,"rows_kept":19,"cut":false,"hidden":false,"merged":[]}
[]
[null,"ان يجمع أسماء الخلايا التي  تحتوي  على رقم 1 في  العمود ds"]
[]
["ض1","ض2","ض3","ض4","ض5","ض6","ض7","ض8","ض9","ض10","ض11","ض12","ض13","ض14","ض15","ض16","ض17","ض18","ض19","ض20","ض21","ض22","ض23","ض24","ض25","ض26","ض27","ض28","ض29","ض30","ض31","ض32","ض33","ض34","ض35","ض36","ض37","ض38","ض39","ض40","ض41","ض42","ض43","ض44","ض45","ض46","ض47","ض48","ض49","ض50","ض51","ض52","ض53","ض54","ض55","ض56","ض57","ض58","ض59","ض60","ض61","ض62","ض63","ض64","ض65","ض66","ض67","ض68","ض69","ض70","ض71","ض72","ض73","ض74","ض75","ض76","ض77","ض78","ض79","ض80","ض81","ض82","ض83","ض84","ض85","ض86","ض87","ض88","ض89","ض90","ض91","ض92","ض93","ض94","ض95","ض96","ض97","ض98","ض99","ض100","ض101","ض102","ض103","ض104","ض105","ض106","ض107","ض108","ض109","ض110","ض111","ض112","ض113","ض114","ض115","ض116","ض117","ض118","ض119","ض120","ض121","ض122","كود","معادلة"]
[1,1,null,null,null,null,null,null,null,null,null,null,null,null,null,null,null,null,1,null,null,null,null,null,null,null,null,null,null,null,null,null,null,null,null,null,null,null,null,null,null,null,null,null,null,null,null,null,null,null,null,null,null,null,null,null,null,null,null,null,null,null,null,null,null,null,null,null,null,null,null,null,null,null,null,null,null,null,null,null,null,null,null,null,null,null,null,null,null,null,null,null,null,null,null,null,null,null,null,null,null,null,null,null,null,null,null,null,null,null,null,null,null,null,null,null,null,null,null,null,null,1,{"$f":"CONCATENATEIF(A5:DR5,\"1\")","v":"ض1  ض2  ض19  ض122  "},{"$f":"_xlfn.TEXTJOIN(\"  \",TRUE,IF(ISNUMBER(SEARCH(\"1\",A5:DR5)),$A$4:$DR$4,\"\"))","v":"ض1  ض2  ض19  ض122"}]
[null,null,null,null,null,null,null,null,null,null,null,null,null,null,null,null,null,null,null,null,null,null,null,null,null,null,null,null,null,null,null,null,null,null,null,null,null,null,null,null,null,null,null,null,null,null,null,null,null,null,null,null,null,null,null,null,null,null,null,null,null,null,null,null,null,null,null,null,null,null,null,null,null,null,null,null,null,null,null,null,null,null,null,null,null,null,null,null,null,null,null,null,null,null,null,null,null,null,null,null,null,null,null,null,null,null,null,null,null,null,null,null,null,null,null,1,null,null,null,1,null,null,{"$f":"CONCATENATEIF(A6:DR6,\"1\")","v":"ض116  ض120  "},{"$f":"_xlfn.TEXTJOIN(\"  \",TRUE,IF(ISNUMBER(SEARCH(\"1\",A6:DR6)),$A$4:$DR$4,\"\"))","v":"ض116  ض120"}]
[null,null,null,null,null,null,null,null,null,null,null,null,null,null,null,null,null,null,null,null,null,null,null,null,null,null,null,null,null,null,null,null,null,null,null,null,null,null,null,null,null,null,null,null,null,null,null,null,null,null,null,null,null,null,null,null,null,null,null,null,null,null,null,null,null,null,null,null,null,null,null,null,null,null,null,null,null,null,null,null,null,null,null,null,null,null,null,null,null,null,null,null,null,null,null,null,null,null,null,null,null,null,null,null,null,null,null,null,null,null,null,null,null,null,null,null,null,null,null,null,null,null,"",{"$f":"_xlfn.TEXTJOIN(\"  \",TRUE,IF(ISNUMBER(SEARCH(\"1\",A7:DR7)),$A$4:$DR$4,\"\"))","v":""},{"$f":"_xlfn.TEXTJOIN(\"  \",TRUE,IF(ISNUMBER(SEARCH(\"1\",A7:DR7)),$A$4:$DR$4,\"\"))","v":""}]
[null,null,null,null,null,null,null,null,null,null,null,null,null,null,null,null,null,null,null,null,null,null,null,null,null,null,null,null,null,null,null,null,null,null,null,null,null,null,null,null,null,null,null,null,null,null,null,null,null,null,null,null,null,null,null,null,null,null,null,null,null,null,null,null,null,null,null,null,null,null,null,null,null,null,null,null,null,null,null,null,null,null,null,null,null,null,null,null,null,null,null,null,null,null,null,null,null,null,null,null,null,null,null,null,null,null,null,null,null,null,null,null,null,null,null,null,null,null,null,null,null,null,null,{"$f":"_xlfn.TEXTJOIN(\"  \",TRUE,IF(ISNUMBER(SEARCH(\"1\",A8:DR8)),$A$4:$DR$4,\"\"))","v":""},{"$f":"_xlfn.TEXTJOIN(\"  \",TRUE,IF(ISNUMBER(SEARCH(\"1\",A8:DR8)),$A$4:$DR$4,\"\"))","v":""}]
[null,null,null,null,null,null,null,null,null,null,null,null,null,null,null,null,null,null,null,null,null,null,null,null,null,null,null,null,null,null,null,null,null,null,null,null,null,null,null,null,null,null,null,null,null,null,null,null,null,null,null,null,null,null,null,null,null,null,null,null,null,null,null,null,null,null,null,null,null,null,null,null,null,null,null,null,null,null,null,null,null,null,null,null,null,null,null,null,null,null,null,null,null,null,null,null,null,null,null,null,null,null,null,null,null,null,null,null,null,null,null,null,null,null,null,null,null,null,null,null,null,null,null,{"$f":"_xlfn.TEXTJOIN(\"  \",TRUE,IF(ISNUMBER(SEARCH(\"1\",A9:DR9)),$A$4:$DR$4,\"\"))","v":""},{"$f":"_xlfn.TEXTJOIN(\"  \",TRUE,IF(ISNUMBER(SEARCH(\"1\",A9:DR9)),$A$4:$DR$4,\"\"))","v":""}]
[null,null,null,null,null,null,null,null,null,null,null,null,null,null,null,null,null,null,null,null,null,null,null,null,null,null,null,null,null,null,null,null,null,null,null,null,null,null,null,null,null,null,null,null,null,null,null,null,null,null,null,null,null,null,null,null,null,null,null,null,null,null,null,null,null,null,null,null,null,null,null,null,null,null,null,null,null,null,null,null,null,null,null,null,null,null,null,null,null,null,null,null,null,null,null,null,null,null,null,null,null,null,null,null,null,null,null,null,null,null,null,null,null,null,null,null,null,null,null,null,null,null,null,{"$f":"_xlfn.TEXTJOIN(\"  \",TRUE,IF(ISNUMBER(SEARCH(\"1\",A10:DR10)),$A$4:$DR$4,\"\"))","v":""},{"$f":"_xlfn.TEXTJOIN(\"  \",TRUE,IF(ISNUMBER(SEARCH(\"1\",A10:DR10)),$A$4:$DR$4,\"\"))","v":""}]
[null,null,null,null,null,null,null,null,null,null,null,null,null,null,null,null,null,null,null,null,null,null,null,null,null,null,null,null,null,null,null,null,null,null,null,null,null,null,null,null,null,null,null,null,null,null,null,null,null,null,null,null,null,null,null,null,null,null,null,null,null,null,null,null,null,null,null,null,null,null,null,null,null,null,null,null,null,null,null,null,null,null,null,null,null,null,null,null,null,null,null,null,null,null,null,null,null,null,null,null,null,null,null,null,null,null,null,null,null,null,null,null,null,null,null,null,null,null,null,null,null,null,null,{"$f":"_xlfn.TEXTJOIN(\"  \",TRUE,IF(ISNUMBER(SEARCH(\"1\",A11:DR11)),$A$4:$DR$4,\"\"))","v":""},{"$f":"_xlfn.TEXTJOIN(\"  \",TRUE,IF(ISNUMBER(SEARCH(\"1\",A11:DR11)),$A$4:$DR$4,\"\"))","v":""}]
[null,null,null,null,null,null,null,null,null,null,null,null,null,null,null,null,null,null,null,null,null,null,null,null,null,null,null,null,null,null,null,null,null,null,null,null,null,null,null,null,null,null,null,null,null,null,null,null,null,null,null,null,null,null,null,null,null,null,null,null,null,null,null,null,null,null,null,null,null,null,null,null,null,null,null,null,null,null,null,null,null,null,null,null,null,null,null,null,null,null,null,null,null,null,null,null,null,null,null,null,null,null,null,null,null,null,null,null,null,null,null,null,null,null,null,null,null,null,null,null,null,null,null,{"$f":"_xlfn.TEXTJOIN(\"  \",TRUE,IF(ISNUMBER(SEARCH(\"1\",A12:DR12)),$A$4:$DR$4,\"\"))","v":""}]
[null,null,null,null,null,null,null,null,null,null,null,null,null,null,null,null,null,null,null,null,null,null,null,null,null,null,null,null,null,null,null,null,null,null,null,null,null,null,null,null,null,null,null,null,null,null,null,null,null,null,null,null,null,null,null,null,null,null,null,null,null,null,null,null,null,null,null,null,null,null,null,null,null,null,null,null,null,null,null,null,null,null,null,null,null,null,null,null,null,null,null,null,null,null,null,null,null,null,null,null,null,null,null,null,null,null,null,null,null,null,null,null,null,null,null,null,null,null,null,null,null,null,null,{"$f":"_xlfn.TEXTJOIN(\"  \",TRUE,IF(ISNUMBER(SEARCH(\"1\",A13:DR13)),$A$4:$DR$4,\"\"))","v":""}]
[null,null,null,null,null,null,null,null,null,null,null,null,null,null,null,null,null,null,null,null,null,null,null,null,null,null,null,null,null,null,null,null,null,null,null,null,null,null,null,null,null,null,null,null,null,null,null,null,null,null,null,null,null,null,null,null,null,null,null,null,null,null,null,null,null,null,null,null,null,null,null,null,null,null,null,null,null,null,null,null,null,null,null,null,null,null,null,null,null,null,null,null,null,null,null,null,null,null,null,null,null,null,null,null,null,null,null,null,null,null,null,null,null,null,null,null,null,null,null,null,null,null,null,{"$f":"_xlfn.TEXTJOIN(\"  \",TRUE,IF(ISNUMBER(SEARCH(\"1\",A14:DR14)),$A$4:$DR$4,\"\"))","v":""}]
[null,null,null,null,null,null,null,null,null,null,null,null,null,null,null,null,null,null,null,null,null,null,null,null,null,null,null,null,null,null,null,null,null,null,null,null,null,null,null,null,null,null,null,null,null,null,null,null,null,null,null,null,null,null,null,null,null,null,null,null,null,null,null,null,null,null,null,null,null,null,null,null,null,null,null,null,null,null,null,null,null,null,null,null,null,null,null,null,null,null,null,null,null,null,null,null,null,null,null,null,null,null,null,null,null,null,null,null,null,null,null,null,null,null,null,null,null,null,null,null,null,null,null,{"$f":"_xlfn.TEXTJOIN(\"  \",TRUE,IF(ISNUMBER(SEARCH(\"1\",A15:DR15)),$A$4:$DR$4,\"\"))","v":""}]
[null,null,null,null,null,null,null,null,null,null,null,null,null,null,null,null,null,null,null,null,null,null,null,null,null,null,null,null,null,null,null,null,null,null,null,null,null,null,null,null,null,null,null,null,null,null,null,null,null,null,null,null,null,null,null,null,null,null,null,null,null,null,null,null,null,null,null,null,null,null,null,null,null,null,null,null,null,null,null,null,null,null,null,null,null,null,null,null,null,null,null,null,null,null,null,null,null,null,null,null,null,null,null,null,null,null,null,null,null,null,null,null,null,null,null,null,null,null,null,null,null,null,null,{"$f":"_xlfn.TEXTJOIN(\"  \",TRUE,IF(ISNUMBER(SEARCH(\"1\",A16:DR16)),$A$4:$DR$4,\"\"))","v":""}]
[null,null,null,null,null,null,null,null,null,null,null,null,null,null,null,null,null,null,null,null,null,null,null,null,null,null,null,null,null,null,null,null,null,null,null,null,null,null,null,null,null,null,null,null,null,null,null,null,null,null,null,null,null,null,null,null,null,null,null,null,null,null,null,null,null,null,null,null,null,null,null,null,null,null,null,null,null,null,null,null,null,null,null,null,null,null,null,null,null,null,null,null,null,null,null,null,null,null,null,null,null,null,null,null,null,null,null,null,null,null,null,null,null,null,null,null,null,null,null,null,null,null,null,{"$f":"_xlfn.TEXTJOIN(\"  \",TRUE,IF(ISNUMBER(SEARCH(\"1\",A17:DR17)),$A$4:$DR$4,\"\"))","v":""}]
[null,null,null,null,null,null,null,null,null,null,null,null,null,null,null,null,null,null,null,null,null,null,null,null,null,null,null,null,null,null,null,null,null,null,null,null,null,null,null,null,null,null,null,null,null,null,null,null,null,null,null,null,null,null,null,null,null,null,null,null,null,null,null,null,null,null,null,null,null,null,null,null,null,null,null,null,null,null,null,null,null,null,null,null,null,null,null,null,null,null,null,null,null,null,null,null,null,null,null,null,null,null,null,null,null,null,null,null,null,null,null,null,null,null,null,null,null,null,null,null,null,null,null,{"$f":"_xlfn.TEXTJOIN(\"  \",TRUE,IF(ISNUMBER(SEARCH(\"1\",A18:DR18)),$A$4:$DR$4,\"\"))","v":""}]
[null,null,null,null,null,null,null,null,null,null,null,null,null,null,null,null,null,null,null,null,null,null,null,null,null,null,null,null,null,null,null,null,null,null,null,null,null,null,null,null,null,null,null,null,null,null,null,null,null,null,null,null,null,null,null,null,null,null,null,null,null,null,null,null,null,null,null,null,null,null,null,null,null,null,null,null,null,null,null,null,null,null,null,null,null,null,null,null,null,null,null,null,null,null,null,null,null,null,null,null,null,null,null,null,null,null,null,null,null,null,null,null,null,null,null,null,null,null,null,null,null,null,null,{"$f":"_xlfn.TEXTJOIN(\"  \",TRUE,IF(ISNUMBER(SEARCH(\"1\",A19:DR19)),$A$4:$DR$4,\"\"))","v":""}]

{"sheet":"ورقة2","index":1,"n_rows":0,"n_cols":0,"rows_kept":0,"cut":false,"hidden":false,"merged":[]}

{"sheet":"ورقة3","index":2,"n_rows":0,"n_cols":0,"rows_kept":0,"cut":false,"hidden":false,"merged":[]}